Cogmind - Beta 16 @@@ ROGUE MODE // 2025.11.06 @ 15:10:07 Player: omewwes Result: Destroyed by H-88 Terminator with KE Penetrator Performance ------------- Evolutions (8) 4000 Regions Visited (27) 5400 Robots Destroyed (241) 1205 Value Destroyed (11527) 11527 Prototype IDs (242) 4840 Alien Tech Used (0) 0 Bonus (12698) 12698 TOTAL SCORE: 39670 Bonus ------- High Alert Combat Kills 2764 Follower Combat Kills 934 Entered Garrisons 1400 Used RIF Installer 4000 Aligned with FarCom 300 Met Data Miner 300 Used Data Conduit 3000 Cogmind --------- Core Integrity 0/1450 Matter 300/300 Energy 20/100 System Corruption 22% Temperature Cool (0) Movement Core (450) Ox8 Location -2/Research Parts ------- > --- POWER (3) -------- (None) > --- PROPULSION (4) --- (None) > --- UTILITY (14) ----- Advanced Cooling System Medium Storage Unit Advanced Gravity Neutralizer Advanced Gravity Neutralizer Advanced Target Analyzer Armor Integrity Analyzer > --- WEAPON (2) ------- Enhanced Nova Cannon > --- INVENTORY (10) --- Relay Coupler [NC] (33) Relay Coupler [Hunter] (19) Enhanced Nova Cannon Advanced Remote Datajack Peak State ------------ > --- POWER ------------ Particle Reactor Quantum Reactor Quantum Reactor > --- PROPULSION ------- Armored Heavy Treads Armored Heavy Treads > --- UTILITY ---------- Advanced Power Amplifier Advanced Heat Sink Advanced Cooling System Advanced Cooling System Large Storage Unit Improved Target Analyzer Advanced Target Analyzer Core Analyzer Improved Armor Integrity Analyzer Advanced Weapon Cycler Improved Phase Shifter Graphene Brace Advanced Thermal Shield Relay Coupler [Sentry] > --- WEAPON ----------- Enhanced Nova Cannon Enhanced Nova Cannon > --- INVENTORY -------- Quantum Reactor Medium Treads Medium Treads Jamming Amplifier Improved Point Defense System Relay Coupler [NC] Relay Coupler [Swarmer] Relay Coupler [Brawler] Relay Coupler [Hunter] Compact HERF Cannon Enhanced Nova Cannon Enhanced Nova Cannon Fusion Bomb Launcher [Rating: 164] Favorites ----------- Power Quantum Reactor Engine Improved Deuterium Engine Power Core Light Nuclear Core Reactor Quantum Reactor Propulsion Armored Medium Treads Treads Armored Medium Treads Leg Enhanced Flexi-carbon Leg Wheel Armored Huge Wheel Hover Unit Gravmag System Flight Unit Improved Q-thruster Utility Advanced Heat Sink Device Advanced Heat Sink Storage Large Storage Unit Processor Core Analyzer Hackware Deep Network Scanner Protection Improved Medium Armor Plating Weapon Enhanced Nova Cannon Energy Gun EM Pulse Gun Energy Cannon Enhanced Nova Cannon Ballistic Gun Gauss Rifle Ballistic Cannon Antimatter Cannon Launcher Proton Missile Launcher Impact Weapon Hammer Slashing Weapon Chainsword Build | -11 -10 -10 -10 -9 -8 -7 -7 -7 -7 -7 -7 -6 -6 -6 -6 -6 -5 -5 -5 -5 -4 -4 -3 -3 -2 -2 -2 ------- Run | Yrd Mat Min Exi Min Mat Fac Was Fac Low Low Dat Pro Fac Gar Fac Gar Fac Gar Fac Gar Fac Gar Res Gar Res Gar Res Slots Evolved 16 | . . . . . 4 2 . . . . . . 2 . . . 2 . . . 2 . 2 . 2 . . Power 2 | . . . . . . . . . . . . . . . . . . . . . 1 . . . 1 . . Propulsion 2 | . . . . . 1 . . . . . . . . . . . . . . . 1 . . . . . . Utility 12 | . . . . . 3 2 . . . . . . 2 . . . 2 . . . . . 2 . 1 . . Weapon . | . . . . . . . . . . . . . . . . . . . . . . . . . . . . Parts Attached 269 | 9 8 1 2 3 17 27 4 20 2 1 7 . 15 1 . 10 15 5 2 25 1 26 3 13 23 7 22 Power 36 | 1 1 1 . 1 1 3 . 2 . . 1 . 1 . . . 2 1 . 3 . 7 . . 6 . 5 Engine 12 | 1 1 1 . 1 . 2 . 2 . . 1 . . . . . 1 . . 2 . . . . . . . Core 4 | . . . . . 1 1 . . . . . . . . . . 1 . . 1 . . . . . . . Reactor 20 | . . . . . . . . . . . . . 1 . . . . 1 . . . 7 . . 6 . 5 Propulsion 61 | 2 2 . . 1 4 8 . 5 . 1 2 . 3 . . 3 5 . 1 4 1 4 . 1 6 4 4 Treads 25 | . . . . . . 5 . 1 . . . . . . . . 3 . 1 4 1 4 . 1 4 . 1 Leg 11 | 2 . . . . . . . 2 . . . . 3 . . 3 1 . . . . . . . . . . Wheel 8 | . . . . . . . . 2 . 1 1 . . . . . . . . . . . . . 1 . 3 Hover 11 | . 2 . . 1 4 3 . . . . 1 . . . . . . . . . . . . . . . . Flight 6 | . . . . . . . . . . . . . . . . . 1 . . . . . . . 1 4 . Utility 122 | 3 4 . 1 . 8 11 3 6 2 . 4 . 9 1 . 6 6 3 1 12 . 10 3 10 10 . 9 Device 54 | 2 1 . . . 1 2 . 3 1 . . . 3 . . 5 4 1 . 7 . 6 1 6 7 . 4 Storage 7 | 1 . . . . . 1 . 1 . . . . . . . 1 . 1 . . . . 1 . . . 1 Processor 22 | . 2 . . . 1 2 1 1 1 . . . 3 1 . . . 1 . 3 . 1 . 1 2 . 2 Hackware 11 | . . . . . 1 2 1 . . . 2 . 1 . . . 1 . . . . . 1 2 . . . Protection 28 | . 1 . 1 . 5 4 1 1 . . 2 . 2 . . . 1 . 1 2 . 3 . 1 1 . 2 Artifact . | . . . . . . . . . . . . . . . . . . . . . . . . . . . . Weapon 50 | 3 1 . 1 1 4 5 1 7 . . . . 2 . . 1 2 1 . 6 . 5 . 2 1 3 4 Energy Gun 10 | 2 . . . . . 1 . 5 . . . . . . . 1 . . . . . . . . . . 1 Energy Cannon 22 | . . . 1 . . 2 . . . . . . 1 . . . 2 1 . 5 . 4 . 2 1 . 3 Ballistic Gun 7 | 1 . . . . 2 . . 1 . . . . . . . . . . . . . . . . . 3 . Ballistic Cannon 3 | . . . . . . 1 . . . . . . 1 . . . . . . . . 1 . . . . . Launcher 2 | . . . . . . . . 1 . . . . . . . . . . . 1 . . . . . . . Special Weapon . | . . . . . . . . . . . . . . . . . . . . . . . . . . . . Impact Weapon 2 | . 1 . . 1 . . . . . . . . . . . . . . . . . . . . . . . Slashing Weapon 4 | . . . . . 2 1 1 . . . . . . . . . . . . . . . . . . . . Piercing Weapon . | . . . . . . . . . . . . . . . . . . . . . . . . . . . . Special Melee Weapon . | . . . . . . . . . . . . . . . . . . . . . . . . . . . . Unidentified Prototypes 13 | . . . . . 2 3 1 4 . . 2 . 1 . . . . . . . . . . . . . . Corrupted Parts 9 | . . . . . . . . . . . . . 6 . . 2 . 1 . . . . . . . . . System Corruption 50 | . . . . . . . . . . . . . 29 . . 11 . 10 . . . . . . . . . Parts Lost 119 | . . . . 4 . 6 4 2 . . . 7 . 1 2 12 . 1 1 13 . 16 . 3 28 2 17 Power 18 | . . . . 1 . 2 1 . . . . 1 . . . 1 . . . 1 . 2 . 1 2 1 5 Propulsion 27 | . . . . 1 . 2 2 . . . . . . . . 3 . . . 1 . 5 . 1 5 1 6 Utility 57 | . . . . 1 . 2 1 1 . . . 3 . 1 2 5 . 1 1 10 . 7 . 1 18 . 3 Weapon 17 | . . . . 1 . . . 1 . . . 3 . . . 3 . . . 1 . 2 . . 3 . 3 Highest Loss Streak 20 | . . . . 3 . 3 4 1 . . . 6 . 1 2 11 . 1 1 3 . 12 . 3 20 2 13 To Critical Strikes . | . . . . . . . . . . . . . . . . . . . . . . . . . . . . Average Backups 7 | . 4 5 4 3 3 4 5 6 7 7 7 9 6 10 9 8 3 5 5 8 6 10 14 13 13 4 4 Power . | . . . . . . . . . . . . 1 . 1 1 1 . . . 1 1 1 2 1 1 1 . Propulsion 1 | . 1 1 1 . . . . 1 2 1 1 3 2 3 3 2 1 2 2 1 . . 1 1 2 . . Utility 3 | . 1 3 2 1 1 1 1 3 2 2 2 4 3 6 5 4 1 2 3 2 2 5 8 7 6 2 2 Weapon 2 | . 1 1 1 2 2 3 3 1 3 3 2 1 . . . . . . . 3 3 2 3 3 4 . 1 Tool/Special . | . . . . . . . . . . . . . . . . . . . . . . . . . . . . Unused Backups 36 | . 2 1 . . 4 3 4 . . . 1 . . 1 1 2 . 1 . 3 . 1 . 1 6 1 4 Power 5 | . 1 . . . . . . . . . . . . 1 . . . . . 1 . . . . . 1 1 Propulsion 4 | . . . . . . . . . . . . . . . . 2 . . . . . . . . 2 . . Utility 14 | . 1 . . . 1 2 1 . . . 1 . . . 1 . . . . 1 . . . . 4 . 2 Weapon 12 | . . 1 . . 3 1 3 . . . . . . . . . . 1 . 1 . 1 . 1 . . . Tool/Special 1 | . . . . . . . . . . . . . . . . . . . . . . . . . . . 1 Average Slot Usage (%) 85 | . 96 100 98 75 92 93 51 62 68 69 65 89 89 99 98 83 87 98 99 97 97 92 78 86 79 13 40 Engine 3 | . 12 14 14 3 3 3 3 6 7 7 7 6 . . . . . . . 1 5 1 . . . . . Reactor 3 | . . . . . . . . . . . . . 5 6 6 4 . 3 5 3 . 7 9 8 12 1 7 Treads 7 | . . . . . . 3 10 . 7 7 7 7 . . . . 11 17 17 17 19 16 9 8 7 . 2 Leg 2 | . 3 . . . . . . 5 . . . . 19 19 20 16 1 . . . . . . . . . . Wheel 1 | . . . . . . . . 8 7 7 6 7 . . . . . . . . . . . . . . 2 Hover 5 | . 23 28 28 25 25 19 . . . . . . . . . . . . . . . . . . . . . Device 13 | . 13 14 12 14 6 7 4 2 7 7 7 7 12 6 5 6 16 18 11 15 26 23 20 26 25 . 6 Storage 4 | . 1 . . . . 1 4 5 7 7 6 7 6 6 6 5 4 6 11 10 5 5 4 5 3 . 1 Processor 14 | . 7 14 9 . 3 6 . 10 6 7 7 7 15 22 26 25 17 19 22 22 21 21 19 21 15 . 4 Hackware 5 | . . . . . 5 15 13 . . . 6 14 12 13 13 13 14 11 11 4 . . . 2 3 . . Protection 6 | . 3 . 5 14 25 20 7 6 7 7 7 13 5 10 5 . 3 4 5 5 5 4 4 . 1 . . Energy Gun 2 | . 26 14 13 1 . . . 7 7 7 4 6 . . . . . . . . . . . . . . 2 Energy Cannon 4 | . . . . . . 1 3 . . . . . 5 6 6 4 6 11 11 10 10 9 9 8 7 . 3 Impact Weapon 1 | . 1 14 14 14 1 . . . . . . . . . . . . . . . . . . . . . . Slashing Weapon 1 | . . . . . 9 7 2 4 . . . 5 . . . . . . . . . . . . . . . Peak Build Rating 164 | 9 8 7 25 23 38 48 57 61 56 57 67 67 89 88 88 89 99 100 96 100 97 122 132 142 164 43 92 Average Rating 75 | 4 7 6 7 7 33 42 34 49 55 56 53 65 79 87 86 72 89 97 94 92 96 108 125 136 143 25 62 On Entrance 57 | . 7 7 7 9 8 38 43 16 56 56 57 67 33 87 88 80 38 99 95 93 89 97 122 132 140 13 20 Avg Prop Armor Cover (%) 5 | . . . . . . 3 . 1 3 3 7 8 5 . . . 11 . . . . . . . 21 . 5 Naked Turns 14 | . . . . . . . 14 . . . . . . . . . . . . . . . . . . . . Heaviest Build 144 | 15 15 8 9 11 22 36 44 77 73 76 70 47 57 57 47 46 44 62 62 81 81 107 111 129 144 25 91 Greatest Support 140 | 20 20 12 12 12 27 84 84 38 28 28 28 28 84 84 84 84 81 81 84 87 107 140 140 140 130 27 64 Greatest Overweight (x) 10 | . . . . 1 . 1 10 2 2 2 2 1 1 . . 3 1 . . . . 2 . . 1 . 2 Average Overweight (x) . | . . . . . . . . 1 2 2 1 . . . . . . . . . . . . . . . . Largest Inventory Capacity 15 | 8 8 5 5 5 5 10 10 10 10 10 10 10 10 10 10 10 5 15 15 15 15 15 15 15 15 5 10 Average Capacity 9 | 6 5 5 5 5 5 5 7 9 10 10 9 10 10 10 10 9 5 7 15 15 15 15 15 15 14 5 6 Most Carried 15 | 4 5 5 5 5 5 10 9 10 10 10 10 10 10 10 10 10 5 13 14 15 8 15 15 15 15 5 5 Average Carried 8 | 1 4 4 4 4 4 5 6 7 8 8 8 9 6 10 9 8 3 6 13 11 6 10 15 14 13 4 4 Final Capacity 15 | 8 5 5 5 5 5 10 5 10 10 10 10 10 10 10 10 5 5 15 15 15 15 15 15 15 5 5 10 Final Carried 15 | 3 5 5 5 4 5 8 5 10 8 10 10 9 10 10 10 4 5 13 14 8 7 15 15 14 5 5 4 Class Distribution -------------------- 39% | Scavenger-Mutant 29% | Mutant 27% | Hacker-Mutant Dominant Class ---------------- Scavenger-Mutant | -10/Materials Mutant | -10/Mines Mutant | -10/Exiles Mutant | -9/Mines Mutant | -8/Materials Hacker-Mutant | -7/Factory Hacker-Skirmisher | -7/Waste Mutant | -7/Factory Mutant | -7/Lower Caves Mutant | -7/Lower Caves Hacker-Mutant | -7/Data Miner Hacker-Mutant | -6/Proximity Caves Hacker-Mutant | -6/Factory Hacker-Mutant | -6/Garrison Scavenger-Mutant | -6/Factory Hacker-Mutant | -6/Garrison Hacker-Skirmisher | -5/Factory Hacker-Mutant | -5/Garrison Hacker-Mutant | -5/Factory Scavenger-Mutant | -5/Garrison Scavenger-Mutant | -4/Factory Scavenger-Mutant | -4/Garrison Scavenger-Mutant | -3/Research Scavenger-Mutant | -3/Garrison Scavenger-Mutant | -2/Research Mutant | -2/Garrison Scavenger-Mutant | -2/Research Resources | -11 -10 -10 -10 -9 -8 -7 -7 -7 -7 -7 -7 -6 -6 -6 -6 -6 -5 -5 -5 -5 -4 -4 -3 -3 -2 -2 -2 ----------- Run | Yrd Mat Min Exi Min Mat Fac Was Fac Low Low Dat Pro Fac Gar Fac Gar Fac Gar Fac Gar Fac Gar Res Gar Res Gar Res Matter Collected 5137 | 242 127 40 . 85 204 343 . 448 . 159 180 103 83 264 . 250 118 192 47 337 . 679 29 307 350 169 381 Remotely . | . . . . . . . . . . . . . . . . . . . . . . . . . . . . Salvage Created 12645 | 120 275 78 . 7 473 676 542 261 . 272 454 377 130 315 . 269 405 1239 283 1098 . 1067 193 1559 1620 169 763 Parts 572 | 6 16 8 . 5 27 36 5 19 . 14 24 22 7 16 . 13 17 42 13 64 . 42 3 70 68 12 23 Haulers Intercepted 7 | . 2 . . . 2 2 . . . . . . 1 . . . . . . . . . . . . . . Recyclers Shooed 3 | . . . . . . . . . . . . . . . 1 . . . . . . . . . . . 2 Parts Field Recycled . | . . . . . . . . . . . . . . . . . . . . . . . . . . . . Retrieved Matter . | . . . . . . . . . . . . . . . . . . . . . . . . . . . . Parts Self-Destructed 13 | . . . . . . . . . . 8 . 5 . . . . . . . . . . . . . . . Prevented 27 | . . . . . . . . . . 7 . 20 . . . . . . . . . . . . . . . Parts Restored . | . . . . . . . . . . . . . . . . . . . . . . . . . . . . Kills | -11 -10 -10 -10 -9 -8 -7 -7 -7 -7 -7 -7 -6 -6 -6 -6 -6 -5 -5 -5 -5 -4 -4 -3 -3 -2 -2 -2 ------- Run | Yrd Mat Min Exi Min Mat Fac Was Fac Low Low Dat Pro Fac Gar Fac Gar Fac Gar Fac Gar Fac Gar Res Gar Res Gar Res Combat Hostiles Destroyed 191 | . 4 . . 3 5 2 2 2 . 6 4 8 1 13 . 7 5 14 5 28 . 23 4 26 17 5 7 Melee 10 | . . . . . 5 2 . . . . . . . . . . . . . 3 . . . . . . . Guns 14 | . 4 . . . . . . 2 . 2 . 2 . . . . . . . . . . . . . 3 1 Cannons 110 | . . . . . . . 1 . . . . . 1 12 . 7 5 13 4 20 . 13 1 16 11 2 4 AOE 33 | . . . . 3 . . . . . 2 . 4 . 1 . . . . . 2 . 10 3 8 . . . Classes Destroyed 18 | 2 4 1 . . 3 2 1 . . . . 1 . 1 . . . 1 . . . . 1 . 1 . . Worker 13 | . . 3 . . 1 6 . 1 . . . . . . . . . . . . . . . . 2 . . Builder 2 | . . . . . . 1 . . . . . . . . . . . . 1 . . . . . . . . Tunneler 4 | 1 . 1 . . . . . 1 . . . . . . . . . . . . . . . . 1 . . Hauler 7 | . 2 . . . 2 2 . . . . . . 1 . . . . . . . . . . . . . . Recycler 8 | 1 . . . . 1 3 . 1 . . . . . . . . . . . . . . . . . . 2 Operator 6 | . . . . . 1 2 . 1 . . . . . . . . 1 . . . . . . . 1 . . Watcher 8 | . 3 . . . . 2 . 1 . . . . . . . . 1 . . . . . . 1 . . . Swarmer 58 | . 3 . . 3 . . . . . 2 . 4 . 7 . . . . 2 14 . 8 . 9 . 5 1 Grunt 54 | . 1 . . . 1 . . . . 4 . 3 . 2 . 4 4 12 . 2 . 6 4 5 4 . 2 Duelist 3 | . . . . . . . . . . . . 1 . 1 . . . . . . . . . . 1 . . Sentry 23 | . . . . . 2 1 . . . . . . 1 2 . . 1 1 1 2 . 3 . 4 4 . 1 Demolisher 1 | . . . . . . . . . . . . . . . . . . . . . . . 1 . . . . Specialist 4 | . . . . . . . . . . . . . . 1 . . . . . 1 . . . . 2 . . Hunter 16 | . . . . . 2 . . 1 . . . . . . . . . . 2 1 . 2 . 4 4 . . Programmer 18 | . . . . . . 1 . 1 . . . . . . . 3 . . . 6 . 2 . 2 1 . 2 Heavy 1 | . . . . . . . . . . . . . . . . . . . . . . . . . 1 . . Behemoth 8 | . . . . . . . . . . . . . . . . . . 1 . 2 . 2 . 2 . . 1 Compactor 2 | . . . . . . . 2 . . . . . . . . . . . . . . . . . . . . Enhanced Grunt 4 | . . . . . . . . . . . 4 . . . . . . . . . . . . . . . . Best Kill Streak 10 | 1 5 1 . 3 3 3 2 1 . 4 4 2 1 4 . 4 3 4 4 9 . 5 4 10 5 3 3 Combat Bots Only 10 | . 3 . . 3 2 1 2 1 . 4 4 2 1 4 . 4 3 4 3 9 . 5 4 10 5 3 3 Max Kills in Single Turn 3 | 1 1 1 . 3 1 1 1 1 . 2 1 2 1 1 . 1 1 1 1 2 . 3 3 3 1 1 2 Gunslinging 1 | . . . . . . . . . . 1 . . . . . . . . . . . . . . . . . Exploded 3 | . . . . 3 . . . . . 1 . 2 . 1 . . . . . 1 . 3 3 3 . . . Melee 1 | . . . . . 1 1 . . . . . . . . . . . . . 1 . . . . . . . Uniques/NPCs Destroyed 1 | . . . . . . . . . . . 1 . . . . . . . . . . . . . . . . Data Miner (-7/Data Miner) Combat | -11 -10 -10 -10 -9 -8 -7 -7 -7 -7 -7 -7 -6 -6 -6 -6 -6 -5 -5 -5 -5 -4 -4 -3 -3 -2 -2 -2 -------- Run | Yrd Mat Min Exi Min Mat Fac Was Fac Low Low Dat Pro Fac Gar Fac Gar Fac Gar Fac Gar Fac Gar Res Gar Res Gar Res Hostile Shots Fired 1782 | . 14 . . 31 38 90 7 81 . 13 23 107 19 86 27 113 10 84 20 205 . 194 3 181 266 58 112 Missed 516 | . 6 . . 7 8 34 . 31 . 1 11 34 3 26 14 45 5 27 6 54 . 33 . 69 60 22 20 Hits 1266 | . 8 . . 24 30 56 7 50 . 12 12 73 16 60 13 68 5 57 14 151 . 161 3 112 206 36 92 Melee 20 | . . . . . . . 7 . . . . 5 2 3 . . . . . . . . . . 3 . . Projectile 1246 | . 8 . . 24 30 56 . 50 . 12 12 68 14 57 13 68 5 57 14 151 . 161 3 112 203 36 92 AOE 1 | . . . . . . . . 1 . . . . . . . . . . . . . . . . . . . Critical Strikes 48 | . . . . . 2 1 3 1 . 1 . 4 1 1 . 2 . 1 . 7 . 11 . 2 9 . 2 Actively Blocked 8 | . . . . . . . 1 . . . . . . . . . . . . . . . . . 7 . . Damage Taken 25689 | 28 81 . . 251 376 1423 517 577 . 191 569 1435 249 683 232 1234 100 1165 330 2913 . 3814 43 2255 4074 742 2407 Core 4030 | . 10 . . 52 114 265 191 33 . . . 209 71 78 39 366 19 191 75 326 . 404 . 118 365 275 829 Absorbed by Shields 894 | . . . . . . . . . . . . . . . . 28 . . . 292 . . . 203 318 53 . Reduced by Siege Mode 308 | . . . . . . . . . . . . . . . . . . . . . . 179 . 51 78 . . Redirected to Shielding 338 | . . . . 9 25 160 32 . . . . . . . . . . . . . . . . . . . 112 Ignored by Resistances 1953 | . . . . . 26 . . 178 . . . . 52 118 . . . 113 . 87 . 872 21 286 161 . 39 Regen/Repaired (Parts) 19 | . . . . . . 19 . . . . . . . . . . . . . . . . . . . . . Core Remaining (%) 60 | 100 . . . 75 79 . . . . . . . . . . 34 . . . 38 . 64 . 90 . . . Volleys Fired 658 | 5 34 . . 3 1 3 7 35 . 7 9 41 9 40 . 19 16 61 8 73 3 67 3 87 66 22 39 Largest 2 | 2 2 . . 1 1 1 1 2 . 2 1 1 2 2 . 2 2 2 2 2 2 2 2 2 2 2 2 Hottest 240 | 90 90 . . 100 25 69 100 110 . 83 55 55 123 123 . 123 171 171 165 226 226 233 214 240 240 120 214 Shots Fired 1035 | 10 64 . . 3 1 3 7 46 . 12 9 40 11 69 . 28 25 94 17 118 6 101 5 147 117 33 69 Gun 217 | 10 64 . . 2 1 . . 45 . 8 2 31 . . . 1 . . . . . . . . . 21 32 Cannon 783 | . . . . 1 . 3 7 . . . . . 11 69 . 27 25 94 17 116 6 94 4 143 117 12 37 Launcher 35 | . . . . . . . . 1 . 4 7 9 . . . . . . . 2 . 7 1 4 . . . Special . | . . . . . . . . . . . . . . . . . . . . . . . . . . . . Kinetic 102 | 3 . . . . 1 2 . 10 . 3 . . 3 27 . 15 . . . . . 12 . . . 21 5 Thermal 683 | 2 30 . . 1 . . 7 22 . 5 . . 8 42 . 13 15 55 9 111 6 62 2 125 92 12 64 Explosive 14 | . . . . . . . . . . . . . . . . . . . . 2 . 7 1 4 . . . Electromagnetic 236 | 5 34 . . 2 . 1 . 14 . 4 9 40 . . . . 10 39 8 5 . 20 2 18 25 . . Robot Hit Streak 34 | 5 7 . . 2 . . 4 13 . 5 7 8 5 6 . 7 6 16 9 9 . 12 1 20 34 5 15 Robot Miss Streak 7 | 1 3 . . 1 . 3 4 2 . 3 1 4 2 3 . 2 2 2 1 2 . 7 3 4 6 3 2 Penetration Max . | . . . . . . . . . . . . . . . . . . . . . . . . . . . . Secondary Targets 3 | . . . . . . . . . . 1 . . . . . . . . . . . . . . . 2 . Max Gunslinging Chain 1 | . . . . . . . . . . 1 . . . . . . . . . . . . . . . 1 . Shots Hit Robots 692 | 7 30 5 . 4 20 43 5 40 . 6 9 25 5 30 . 18 13 66 11 70 . 60 2 88 67 15 53 Core Hits 357 | 2 11 2 . 3 8 14 3 13 . 5 13 18 3 21 . 11 10 25 8 29 . 43 9 47 32 9 18 Critical Kills 7 | . . 1 . . . . 1 . . . . . . . . . . . 1 3 . . . 1 . . . Critical Parts Destroyed 1 | . . 1 . . . . . . . . . . . . . . . . . . . . . . . . . Critical Strikes 18 | . 1 2 . . 2 . 1 . . . . . . 1 . . . 2 1 3 . 4 . 1 . . . Burn 1 | . 1 . . . . . . . . . . . . . . . . . . . . . . . . . . Meltdown 6 | . . . . . . . 1 . . . . . . . . . . . 1 3 . . . 1 . . . Blast 3 | . . . . . . . . . . . . . . 1 . . . . . . . 2 . . . . . Corrupt 4 | . . . . . . . . . . . . . . . . . . 2 . . . 2 . . . . . Smash 2 | . . 2 . . . . . . . . . . . . . . . . . . . . . . . . . Sever 2 | . . . . . 2 . . . . . . . . . . . . . . . . . . . . . . Melee Attacks 104 | . 3 7 . 4 27 60 . 2 . . 1 . . . . . . . . . . . . . . . . Impact 14 | . 3 7 . 4 . . . . . . . . . . . . . . . . . . . . . . . Slashing 90 | . . . . . 27 60 . 2 . . 1 . . . . . . . . . . . . . . . . Piercing . | . . . . . . . . . . . . . . . . . . . . . . . . . . . . Sneak Attacks 30 | . . 5 . . 7 16 . 1 . . 1 . . . . . . . . . . . . . . . . Combat Hostiles . | . . . . . . . . . . . . . . . . . . . . . . . . . . . . Follow-up Attacks 1 | . . . . . 1 . . . . . . . . . . . . . . . . . . . . . . Damage Inflicted 33778 | 133 418 281 . 379 1016 2266 827 808 . 401 554 592 197 1395 4 818 539 2652 560 3757 . 4190 627 5148 3376 437 2403 Guns 2691 | 90 418 . . 11 . . . 748 . 56 16 202 . . . . . . . . . . . . . 296 854 Cannons 21379 | . . . . 115 . . 546 . . . . . 197 1248 . 818 539 2652 455 3176 . 2573 97 3949 3376 141 1497 Explosions 5908 | 43 . . . 194 . . 281 . . 345 454 390 . 147 . . . . 105 551 . 1617 530 1199 . . 52 Melee 3743 | . . 281 . 59 1016 2243 . 60 . . 84 . . . . . . . . . . . . . . . . Ramming 57 | . . . . . . 23 . . . . . . . . 4 . . . . 30 . . . . . . . Kinetic 2194 | 15 . . . . . . . 207 . 39 . . 72 427 . 458 . . . . . 607 . . . 296 73 Thermal 18184 | 67 150 . . 309 . . 827 410 . 17 46 . 125 968 . 360 232 1329 191 3064 . 1589 97 3500 2484 141 2278 Explosive 4054 | . . . . . . . . . . . . . . . . . . . 105 551 . 1617 530 1199 . . 52 Electromagnetic 5546 | 51 268 . . 11 . . . 131 . 345 424 592 . . . . 307 1323 264 112 . 377 . 449 892 . . Impact 340 | . . 281 . 59 . . . . . . . . . . . . . . . . . . . . . . . Slashing 3403 | . . . . . 1016 2243 . 60 . . 84 . . . . . . . . . . . . . . . . Piercing . | . . . . . . . . . . . . . . . . . . . . . . . . . . . . Highest Corruption 35 | . . . . . . 5 15 15 13 13 13 13 29 23 23 35 . 10 10 22 . 1 . . 13 14 22 Average Corruption 11 | . . . . . . 3 13 7 13 13 13 13 27 23 23 25 . 10 10 16 . 1 . . 2 13 15 Corruption Purged 8 | . . . . . . . . 2 . . . . 6 . . . . . . . . . . . . . . Corruption Blocked . | . . . . . . . . . . . . . . . . . . . . . . . . . . . . Effects 305 | . . . . . . 13 6 35 14 13 10 20 20 30 7 17 . 24 5 49 . 8 . . 6 6 22 Message Errors 69 | . . . . . . 3 1 6 3 4 3 4 8 6 2 2 . 7 1 10 . 2 . . . 1 6 Matter Fused 61 | . . . . . . 3 1 9 2 2 3 1 2 5 1 2 . 4 1 18 . 1 . . . . 6 Heat Flow Errors 33 | . . . . . . 2 1 5 1 2 2 2 4 3 1 3 . 3 . 1 . . . . . 1 2 Energy Discharges 42 | . . . . . . 1 1 5 4 . 2 4 1 5 1 2 . 4 . 4 . 3 . . 2 1 2 Parts Rejected 2 | . . . . . . . . . . . . . . . . . . . . 1 . . . . 1 . . Parts Fused 5 | . . . . . . 1 . 1 . . . . . . . . . 1 . . . 1 . . . 1 . Data Loss (minor) 38 | . . . . . . 3 1 3 2 1 . 5 1 3 2 3 . . 1 9 . . . . 2 1 1 Data Loss (major) 11 | . . . . . . . . 2 2 1 . . 1 1 . . . 2 . 1 . . . . . . 1 Misfires 13 | . . . . . . . . 2 . 2 . . 1 2 . . . . 1 3 . 1 . . . 1 . Alerts 9 | . . . . . . . . . . 1 . 2 1 1 . . . 2 1 . . . . . 1 . . Misdirections 6 | . . . . . . . 1 . . . . 1 1 . . 2 . . . . . . . . . . 1 Weapon Failures 16 | . . . . . . . . 2 . . . 1 . 4 . 3 . 1 . 2 . . . . . . 3 Overload Shots . | . . . . . . . . . . . . . . . . . . . . . . . . . . . . Overflow Damage 1262 | . . 75 . 53 174 302 . . . . . 17 1 . . 35 . 50 2 150 . 51 . 119 81 . 152 Projectiles 547 | . . . . 44 . . . . . . . . 1 . . 35 . 50 2 142 . . . 40 81 . 152 Explosions 155 | . . . . . . . . . . . . 17 . . . . . . . 8 . 51 . 79 . . . Melee 560 | . . 75 . 9 174 302 . . . . . . . . . . . . . . . . . . . . . Knockbacks 10 | . . 1 . . . 1 . . . . . . . 4 . 4 . . . . . . . . . . . Impact 2 | . . 1 . . . 1 . . . . . . . . . . . . . . . . . . . . . Kinetic 7 | . . . . . . . . . . . . . . 4 . 3 . . . . . . . . . . . Secondary 1 | . . . . . . . . . . . . . . . . 1 . . . . . . . . . . . Self-Inflicted Damage 760 | 28 . . . 53 . 11 194 . . . . 96 . . . . . . 85 136 . 50 . . . . 107 Shots 19 | 1 . . . 1 . . 3 . . . . 7 . . . . . . 1 3 . 2 . . . . 1 Rammed 7 | . . . . . . 2 . . . . . . . . . . . . . 4 . . . . 1 . . Targets Rammed 11 | . . . . . . 2 . . . . . . . . 1 . . . . 7 . . . . 1 . . Kicked 1 | . . . . . . . . . . . . . . . 1 . . . . . . . . . . . . Crushed 3 | . . . . . . . . . . . . . . . . . . . . 3 . . . . . . . Highest Temperature 693 | 60 326 . . 24 11 242 204 419 140 135 127 246 188 211 109 380 186 225 63 388 . 595 30 199 693 322 528 Average Temperature 113 | 26 112 . . 12 8 106 40 133 74 57 63 93 62 27 67 152 61 76 25 98 . 146 17 93 194 113 220 Received Heat Transfer 4363 | . 24 . . . 135 123 . 63 . 54 . 231 . 93 90 191 45 339 . 128 . 1942 9 256 223 75 342 Effects 38 | . 4 . . . . . . 4 . . . . . . . 1 . . . 1 . 6 . . 15 . 7 Shutdowns 14 | . . . . . . . . 2 . . . . . . . 1 . . . . . 2 . . 5 . 4 Energy Bleed 2 | . . . . . . . . 1 . . . . . . . . . . . 1 . . . . . . . Interference 5 | . 3 . . . . . . 1 . . . . . . . . . . . . . 1 . . . . . Matter Decay 4 | . . . . . . . . . . . . . . . . . . . . . . . . . 4 . . Short Circuit 3 | . . . . . . . . . . . . . . . . . . . . . . 1 . . 1 . 1 Damage (minor) 4 | . 1 . . . . . . . . . . . . . . . . . . . . 1 . . 2 . . Damage (major) 5 | . . . . . . . . . . . . . . . . . . . . . . . . . 3 . 2 Damage (core) 1 | . . . . . . . . . . . . . . . . . . . . . . 1 . . . . . Siege Activations 5 | . . . . . . . . . . . . . . . . . . . . . . 1 . 1 3 . . Total Turns 105 | . . . . . . . . . . . . . . . . . . . . . . 12 . 38 55 . . Longest Duration 38 | . . . . . . . . . . . . . . . . . . . . . . 12 . 38 21 . . Martial Activations . | . . . . . . . . . . . . . . . . . . . . . . . . . . . . Shielding Activations . | . . . . . . . . . . . . . . . . . . . . . . . . . . . . Robots Disrupted 2 | . . . . . . . . 1 . . . . . . . . 1 . . . . . . . . . . Combat Hostiles 1 | . . . . . . . . . . . . . . . . . 1 . . . . . . . . . . Robots Corrupted 18 | . . 1 . . . . . . . 2 4 2 . . . . . 2 . . . . . 2 5 . . Combat Hostiles 16 | . . . . . . . . . . 2 4 2 . . . . . 1 . . . . . 2 5 . . Parts Fried 37 | . 2 3 . . . 1 . . . 2 9 1 . . . . 1 4 2 . . . . 3 9 . . Impact Corruptions 4 | . . 3 . 1 . . . . . . . . . . . . . . . . . . . . . . . Robots Melted 9 | . . . . . . . 1 . . . . . . . . . . . 1 3 . . . 1 1 . 2 Combat Hostiles 8 | . . . . . . . 1 . . . . . . . . . . . 1 3 . . . . 1 . 2 Parts Melted 26 | . 2 . . . . . 2 2 . . . . . . . . . . 1 5 . 2 . 4 . . 8 Heat Transferred 14695 | 124 518 . . 160 . . 720 703 . 37 100 . . 200 . . 222 1184 185 2440 . 1332 74 2738 1961 73 1924 Parts Sabotaged . | . . . . . . . . . . . . . . . . . . . . . . . . . . . . Parts Stolen . | . . . . . . . . . . . . . . . . . . . . . . . . . . . . Parts Stripped . | . . . . . . . . . . . . . . . . . . . . . . . . . . . . Power Chain Reactions 5 | 1 . . . . . . . . . . 1 1 . 2 . . . . . . . . . . . . . Alert | -11 -10 -10 -10 -9 -8 -7 -7 -7 -7 -7 -7 -6 -6 -6 -6 -6 -5 -5 -5 -5 -4 -4 -3 -3 -2 -2 -2 ------- Run | Yrd Mat Min Exi Min Mat Fac Was Fac Low Low Dat Pro Fac Gar Fac Gar Fac Gar Fac Gar Fac Gar Res Gar Res Gar Res Maximum Alert Level 4 | . . . . . . . . . . . . . . 1 . 1 1 3 2 4 2 4 3 4 3 2 1 Low Security (%) 46 | 100 100 100 . 100 100 100 100 100 . . . . 100 26 100 60 92 7 . . . . . . . . 34 Level 1 9 | . . . . . . . . . . . . . . 73 . 39 7 17 . . . . . . 3 97 65 Level 2 15 | . . . . . . . . . . . . . . . . . . 36 100 57 100 20 8 15 28 2 . Level 3 24 | . . . . . . . . . . . . . . . . . . 38 . 33 . 64 91 58 67 . . Level 4 5 | . . . . . . . . . . . . . . . . . . . . 9 . 14 . 25 . . . Level 5 . | . . . . . . . . . . . . . . . . . . . . . . . . . . . . High Security . | . . . . . . . . . . . . . . . . . . . . . . . . . . . . Max Security . | . . . . . . . . . . . . . . . . . . . . . . . . . . . . Peak Influence 1351 | 5 70 5 . 89 69 41 16 44 . . . . 30 350 188 253 230 847 590 1235 648 1264 794 1351 831 403 274 Initial 759 | . . 1 . . 3 11 5 . . . . . . . 183 68 77 155 444 406 648 418 711 558 759 240 222 Average 397 | 1 22 . . 48 19 6 2 9 . . . . 2 246 162 177 42 584 491 703 622 874 742 1007 677 329 203 Influence Increases 7248 | 10 142 21 . 99 181 281 30 221 . 140 20 225 42 360 25 200 301 722 216 959 10 1046 163 943 483 175 233 Destroy 0b10 Robot/C 3705 | . 80 . . 60 100 40 . 80 . 120 20 160 20 260 . 140 180 280 100 560 . 515 75 480 255 75 105 Destroy 0b10 Robot/NC 261 | 10 25 20 . . 25 80 . 25 . . . . 5 . . . 20 10 5 . . . 8 4 16 . 8 Destroy Leader 564 | . 20 . . 10 44 28 . 42 . 20 . 20 12 20 . 20 34 40 30 40 . 24 8 40 80 8 24 Allied During Kill 262 | . . . . . . . . 16 . . . . . . . . 7 2 . . . 140 13 84 . . . Trap Triggered on 0b10 30 | . . . . . . . . . . . . . . . . . 10 . . 20 . . . . . . . Successful Hack 141 | . 2 . . . 8 51 . 28 . . . . . . 25 10 . . . 8 . . 9 . . . . Disable Machine 333 | . 15 . . 15 . 60 . 15 . . . . . . . . 30 60 30 . . 12 . 48 24 . 24 Anti-Garrison Action 226 | . . . . . . . . . . . . . . . . . . . . . . 151 . 75 . . . Destroy Structure 1021 | . . 1 . 14 4 7 30 . . . . . 5 50 . 15 20 30 36 181 10 192 50 176 96 32 72 Lose Combat Pursuer 705 | . . . . . . 15 . 15 . . . 45 . 30 . 15 . 300 15 150 . 12 . 36 12 60 . Influence Decreases 7161 | 10 137 26 . 90 165 289 47 197 24 40 120 225 42 10 277 150 227 97 483 304 647 380 683 336 1514 100 541 Entered New Map 3409 | . . 4 . . 6 14 12 . 10 . 100 . . . 167 30 71 67 403 174 587 180 553 186 592 80 173 Time Decay 2134 | 10 137 22 . 80 159 261 22 177 14 40 20 164 42 . 70 . 156 . 70 . 60 . 90 . 342 . 198 Lost Part 1078 | . . . . 10 . 14 13 20 . . . 61 . 10 20 120 . 10 10 130 . 160 . 30 280 20 170 Lost Ally 240 | . . . . . . . . . . . . . . . 20 . . 20 . . . 40 40 120 . . . Purge Threat 300 | . . . . . . . . . . . . . . . . . . . . . . . . . 300 . . Squads Dispatched 29 | . 1 . . . 4 5 . 6 . . . 1 . . . . 4 . 2 . . . . . 4 . 2 Investigation 2 | . . . . . 1 . . . . . . . . . . . 1 . . . . . . . . . . Extermination 8 | . . . . . . 3 . 3 . . . . . . . . 1 . . . . . . . . . 1 Reinforcement 13 | . 1 . . . 3 2 . 1 . . . . . . . . 2 . 1 . . . . . 2 . 1 Assault 3 | . . . . . . . . . . . . 1 . . . . . . . . . . . . 2 . . Garrison 3 | . . . . . . . . 2 . . . . . . . . . . 1 . . . . . . . . Intercept . | . . . . . . . . . . . . . . . . . . . . . . . . . . . . Searches Triggered . | . . . . . . . . . . . . . . . . . . . . . . . . . . . . Construction Impeded 3 | . . . . . 1 . . 1 . . . . . . . . . . . . . . . . . . 1 Haulers Reinforced 1 | . . . . . . 1 . . . . . . . . . . . . . . . . . . . . . Active Scanning Responses . | . . . . . . . . . . . . . . . . . . . . . . . . . . . . Cargo Convoy Interrupts 1 | . . . . . . 1 . . . . . . . . . . . . . . . . . . . . . Stealth | -11 -10 -10 -10 -9 -8 -7 -7 -7 -7 -7 -7 -6 -6 -6 -6 -6 -5 -5 -5 -5 -4 -4 -3 -3 -2 -2 -2 --------- Run | Yrd Mat Min Exi Min Mat Fac Was Fac Low Low Dat Pro Fac Gar Fac Gar Fac Gar Fac Gar Fac Gar Res Gar Res Gar Res Distress Signals 11 | . . . . . 2 3 . . . . . . . . . . . . 2 . . . . . 1 . 3 Communications Jammed 4 | . . . . . . . . . . . . . . . . . 4 . . . . . . . . . . Distress Signals 4 | . . . . . . . . . . . . . . . . . 4 . . . . . . . . . . Times Spotted 346 | . 8 . . 6 21 29 5 10 . 6 4 22 4 13 5 16 9 19 6 33 . 29 5 32 31 18 15 Peak Tracking Total 10 | . 3 . . 3 6 5 3 3 . 4 4 9 4 4 5 6 3 7 4 9 . 4 5 6 9 10 9 Tactical Retreats 41 | . . . . . 5 8 . 1 . . . 2 . 1 . 1 . 9 1 5 . 1 . 3 1 3 . ECM-based Alert Blocks 28 | . . . . . 13 15 . . . . . . . . . . . . . . . . . . . . . Traps | -11 -10 -10 -10 -9 -8 -7 -7 -7 -7 -7 -7 -6 -6 -6 -6 -6 -5 -5 -5 -5 -4 -4 -3 -3 -2 -2 -2 ------- Run | Yrd Mat Min Exi Min Mat Fac Was Fac Low Low Dat Pro Fac Gar Fac Gar Fac Gar Fac Gar Fac Gar Res Gar Res Gar Res Traps Triggered 23 | . . . . . 1 7 . . . . . . 1 2 . 1 2 1 . 1 . 3 . 2 . 1 1 Indirectly . | . . . . . . . . . . . . . . . . . . . . . . . . . . . . Trap Hack Attempts . | . . . . . . . . . . . . . . . . . . . . . . . . . . . . Triggered . | . . . . . . . . . . . . . . . . . . . . . . . . . . . . Disarmed . | . . . . . . . . . . . . . . . . . . . . . . . . . . . . Reprogrammed 2 | . . . . . . . . . . . . . . . . . 2 . . . . . . . . . . Reused 3 | . . . . . . . . . . . . . . . . . 1 . . 2 . . . . . . . Traps Extracted . | . . . . . . . . . . . . . . . . . . . . . . . . . . . . Installed 6 | . . . . . . . . . . . . . . . . . . . . 6 . . . . . . . Triggered 3 | . . . . . . . . . . . . . . . . . 1 . . 2 . . . . . . . Most Traps Carried 8 | . . . . . . . . . . . . . . . . . . 8 8 8 . . . . . . . Machines | -11 -10 -10 -10 -9 -8 -7 -7 -7 -7 -7 -7 -6 -6 -6 -6 -6 -5 -5 -5 -5 -4 -4 -3 -3 -2 -2 -2 ---------- Run | Yrd Mat Min Exi Min Mat Fac Was Fac Low Low Dat Pro Fac Gar Fac Gar Fac Gar Fac Gar Fac Gar Res Gar Res Gar Res Machines Disabled 27 | . 1 . . 1 . 4 . 1 . . . . . 1 . . 2 4 2 . . 3 . 4 2 . 2 Max in Single Turn 1 | . 1 . . 1 . 1 . 1 . . . . . 1 . . . 1 1 . . 1 . 1 1 . 1 Garrison Access 2 | . . . . . . 2 . . . . . . . . . . . . . . . . . . . . . Garrison Relay 2 | . . . . . . . . . . . . . . . . . . . . . . 2 . . . . . Machines Repaired . | . . . . . . . . . . . . . . . . . . . . . . . . . . . . Machines Dismantled . | . . . . . . . . . . . . . . . . . . . . . . . . . . . . Machines Sabotaged . | . . . . . . . . . . . . . . . . . . . . . . . . . . . . Overloaded Fab Kills . | . . . . . . . . . . . . . . . . . . . . . . . . . . . . Hacking | -11 -10 -10 -10 -9 -8 -7 -7 -7 -7 -7 -7 -6 -6 -6 -6 -6 -5 -5 -5 -5 -4 -4 -3 -3 -2 -2 -2 --------- Run | Yrd Mat Min Exi Min Mat Fac Was Fac Low Low Dat Pro Fac Gar Fac Gar Fac Gar Fac Gar Fac Gar Res Gar Res Gar Res Machines Accessed 53 | . 2 1 3 . 6 11 . 4 . . 4 . 2 . 4 1 2 1 2 1 1 1 2 1 2 . 2 Terminals 27 | . 2 1 . . 5 6 . 2 . . . . 1 . 2 1 1 1 1 1 . 1 . 1 1 . . Fabricators 3 | . . . . . . 1 . 1 . . . . . . . . . . . . . . . . . . 1 Repair Stations 3 | . . . . . . 1 . 1 . . . . . . 1 . . . . . . . . . . . . Recycling Units . | . . . . . . . . . . . . . . . . . . . . . . . . . . . . Scanalyzers 3 | . . . . . 1 1 . . . . . . . . . . . . . . . . 1 . . . . Garrison Access 10 | . . . . . . 2 . . . . . . 1 . 1 . 1 . 1 . 1 . 1 . 1 . 1 Total Hacks 134 | . 6 1 7 . 15 30 . 6 . . 27 . 3 . 9 1 6 3 4 1 1 2 3 2 3 . 4 Successful 79 | . 4 . 7 . 4 11 . 3 . . 27 . 1 . 6 1 4 1 1 1 1 . 2 . 3 . 2 Failed 53 | . 2 1 . . 11 18 . 3 . . . . 2 . 3 . 2 2 3 . . 2 . 2 . . 2 Catastrophic 11 | . 1 . . . 3 3 . 1 . . . . 1 . 1 . . . . . . . . . . . 1 Database Lockouts 2 | . . . . . . 1 . . . . . . . . . . . . . . . . 1 . . . . Manual 31 | . 1 . 1 . 9 8 . 1 . . . . . . 3 . 2 . 3 . . . . . 2 . 1 Terminals 61 | . 6 1 . . 11 15 . 4 . . . . 1 . 6 1 3 3 3 1 . 2 . 2 2 . . Fabricators 5 | . . . . . . 2 . 1 . . . . . . . . . . . . . . . . . . 2 Repair Stations 6 | . . . . . . 3 . 1 . . . . . . 2 . . . . . . . . . . . . Recycling Units . | . . . . . . . . . . . . . . . . . . . . . . . . . . . . Scanalyzers 11 | . . . . . 4 5 . . . . . . . . . . . . . . . . 2 . . . . Garrison Access 17 | . . . . . . 5 . . . . . . 2 . 1 . 3 . 1 . 1 . 1 . 1 . 2 Terminal Hacks 55 | . 4 . 7 . 1 3 . 2 . . 27 . . . 4 1 2 1 . 1 . . . . 2 . . Record 18 | . 1 . 6 . . . . . . . 11 . . . . . . . . . . . . . . . . Part Schematic 10 | . . . . . . . . . . . 10 . . . . . . . . . . . . . . . . Robot Schematic 3 | . . . . . . . . . . . 3 . . . . . . . . . . . . . . . . Prototype ID Bank 4 | . . . . . . 1 . . . . 3 . . . . . . . . . . . . . . . . Branch Access Points 2 | . . . . . 1 . . 1 . . . . . . . . . . . . . . . . . . . Emergency Access Points 4 | . . . . . . . . 1 . . . . . . . 1 . 1 . 1 . . . . . . . Unreport Threat 2 | . . . . . . . . . . . . . . . . . . . . . . . . . 2 . . Locate Traps 3 | . 1 . . . . . . . . . . . . . 2 . . . . . . . . . . . . Reprogram Traps 1 | . . . . . . . . . . . . . . . . . 1 . . . . . . . . . . Dispatch Records 1 | . 1 . . . . . . . . . . . . . . . . . . . . . . . . . . Patrol Status 1 | . . . . . . . . . . . . . . . 1 . . . . . . . . . . . . Hauler Manifests 2 | . 1 . . . . 1 . . . . . . . . . . . . . . . . . . . . . Registered Components 2 | . . . . . . . . . . . . . . . 1 . 1 . . . . . . . . . . Zone Layout 1 | . . . . . . 1 . . . . . . . . . . . . . . . . . . . . . Proto ID Catalog 1 | . . . 1 . . . . . . . . . . . . . . . . . . . . . . . . Fabricator Hacks 3 | . . . . . . 1 . 1 . . . . . . . . . . . . . . . . . . 1 Load Schematic 1 | . . . . . . . . . . . . . . . . . . . . . . . . . . . 1 Build 2 | . . . . . . 1 . 1 . . . . . . . . . . . . . . . . . . . Repair Station Hacks 3 | . . . . . . 2 . . . . . . . . 1 . . . . . . . . . . . . Scan Component 2 | . . . . . . 1 . . . . . . . . 1 . . . . . . . . . . . . Repair 1 | . . . . . . 1 . . . . . . . . . . . . . . . . . . . . . Recycling Unit Hacks . | . . . . . . . . . . . . . . . . . . . . . . . . . . . . Scanalyzer 6 | . . . . . 3 2 . . . . . . . . . . . . . . . . 1 . . . . Retrieve Study 6 | . . . . . 3 2 . . . . . . . . . . . . . . . . 1 . . . . Garrison Access Hacks 10 | . . . . . . 2 . . . . . . 1 . 1 . 1 . 1 . 1 . 1 . 1 . 1 Unlock Access 8 | . . . . . . . . . . . . . 1 . 1 . 1 . 1 . 1 . 1 . 1 . 1 Seal Access 2 | . . . . . . 2 . . . . . . . . . . . . . . . . . . . . . Unauthorized Hacks 2 | . . . . . . 1 . . . . . . . . . . 1 . . . . . . . . . . Terminals 1 | . . . . . . 1 . . . . . . . . . . . . . . . . . . . . . Track 1 | . . . . . . 1 . . . . . . . . . . . . . . . . . . . . . Fabricators . | . . . . . . . . . . . . . . . . . . . . . . . . . . . . Repair Stations . | . . . . . . . . . . . . . . . . . . . . . . . . . . . . Recycling Units . | . . . . . . . . . . . . . . . . . . . . . . . . . . . . Scanalyzers . | . . . . . . . . . . . . . . . . . . . . . . . . . . . . Garrison Access 1 | . . . . . . . . . . . . . . . . . 1 . . . . . . . . . . Reprogram 1 | . . . . . . . . . . . . . . . . . 1 . . . . . . . . . . Data Cores Recovered . | . . . . . . . . . . . . . . . . . . . . . . . . . . . . Used . | . . . . . . . . . . . . . . . . . . . . . . . . . . . . Hacking Detections 36 | . 1 1 . . 5 8 . 4 . . . . 2 . 3 . 2 1 1 . . 1 2 1 2 . 2 Full Trace Events . | . . . . . . . . . . . . . . . . . . . . . . . . . . . . Feedback Events . | . . . . . . . . . . . . . . . . . . . . . . . . . . . . Feedback Blocked . | . . . . . . . . . . . . . . . . . . . . . . . . . . . . Robot Schematics Acquired 3 | . . . . . . . . . . . 3 . . . . . . . . . . . . . . . . Robots Built 3 | . . . . . . . . 3 . . . . . . . . . . . . . . . . . . . Authchips . | . . . . . . . . . . . . . . . . . . . . . . . . . . . . Time 67 | . . . . . . . . 67 . . . . . . . . . . . . . . . . . . . Total Robot Build Rating 12 | . . . . . . . . 12 . . . . . . . . . . . . . . . . . . . Part Schematics Acquired 10 | . . . . . . . . . . . 10 . . . . . . . . . . . . . . . . Parts Built 2 | . . . . . . 2 . . . . . . . . . . . . . . . . . . . . . Authchips . | . . . . . . . . . . . . . . . . . . . . . . . . . . . . Time 58 | . . . . . . 58 . . . . . . . . . . . . . . . . . . . . . Total Part Build Rating 14 | . . . . . . 14 . . . . . . . . . . . . . . . . . . . . . Part Studies Acquired 5 | . . . . . 2 2 . . . . . . . . . . . . . . . . 1 . . . . Parts Repaired 1 | . . . . . . 1 . . . . . . . . . . . . . . . . . . . . . Time 22 | . . . . . . 22 . . . . . . . . . . . . . . . . . . . . . Parts Recycled . | . . . . . . . . . . . . . . . . . . . . . . . . . . . . Recycled Matter . | . . . . . . . . . . . . . . . . . . . . . . . . . . . . Retrieved Matter . | . . . . . . . . . . . . . . . . . . . . . . . . . . . . Retrieved Components . | . . . . . . . . . . . . . . . . . . . . . . . . . . . . Parts Scanalyzed . | . . . . . . . . . . . . . . . . . . . . . . . . . . . . Part Schematics Acquired . | . . . . . . . . . . . . . . . . . . . . . . . . . . . . Parts Damaged . | . . . . . . . . . . . . . . . . . . . . . . . . . . . . Bothacking | -11 -10 -10 -10 -9 -8 -7 -7 -7 -7 -7 -7 -6 -6 -6 -6 -6 -5 -5 -5 -5 -4 -4 -3 -3 -2 -2 -2 ------------ Run | Yrd Mat Min Exi Min Mat Fac Was Fac Low Low Dat Pro Fac Gar Fac Gar Fac Gar Fac Gar Fac Gar Res Gar Res Gar Res Used RIF Installer 8 | . . . . . . . . . . . . . . 1 . 1 . 1 . 1 . 2 . 1 . 1 . Command Fork 2 | . . . . . . . . . . . . . . . . 1 . . . . . . . . . 1 . Threat Obfuscator 1 | . . . . . . . . . . . . . . . . . . . . . . 1 . . . . . Signal Jammer 1 | . . . . . . . . . . . . . . . . . . . . 1 . . . . . . . Zone Cloak 1 | . . . . . . . . . . . . . . . . . . . . . . . . 1 . . . Alert ID Control 1 | . . . . . . . . . . . . . . . . . . 1 . . . . . . . . . Autooverride 1 | . . . . . . . . . . . . . . . . . . . . . . 1 . . . . . Robots Hacked 2 | . . . . . . . . . . . . . . . . . . . . . . . . 2 . . . Non-combat . | . . . . . . . . . . . . . . . . . . . . . . . . . . . . Combat 2 | . . . . . . . . . . . . . . . . . . . . . . . . 2 . . . Autooverrided 2 | . . . . . . . . . . . . . . . . . . . . . . . . 2 . . . Robot Hacks Applied . | . . . . . . . . . . . . . . . . . . . . . . . . . . . . Relay Couplers Released 7 | . . . . . . . . . . . . . . . . . . . . . . 7 . . . . . Machine Destruction 7 | . . . . . . . . . . . . . . . . . . . . . . 7 . . . . . Attached 2 | . . . . . . . . . . . . . . . . . . . . . . . . 2 . . . Fabnet Peak Effective % . | . . . . . . . . . . . . . . . . . . . . . . . . . . . . Robots Rewired 13 | . . . . . . . . . . . . . . 1 . . . . . . . 6 . 6 . . . Allies Hacked 1 | . . . . . . . . 1 . . . . . . . . . . . . . . . . . . . Hacks Repelled . | . . . . . . . . . . . . . . . . . . . . . . . . . . . . Allies | -11 -10 -10 -10 -9 -8 -7 -7 -7 -7 -7 -7 -6 -6 -6 -6 -6 -5 -5 -5 -5 -4 -4 -3 -3 -2 -2 -2 -------- Run | Yrd Mat Min Exi Min Mat Fac Was Fac Low Low Dat Pro Fac Gar Fac Gar Fac Gar Fac Gar Fac Gar Res Gar Res Gar Res Total Allies 21 | . . 1 . . . . . 3 . . . . . 1 . . 2 . . . . 6 . 8 . . . Largest Group 7 | . . 1 . . . . . 3 . . . . . 1 1 . 2 1 . . . 4 4 7 . . . Highest-Rated Group 349 | . . 31 . . . . . 90 . . . . . 30 30 . 108 54 . . . 238 237 349 . . . Highest-Rated Ally 119 | . . 31 . . . . . 30 . . . . . 30 30 . 54 54 . . . 119 85 64 . . . Total Orders . | . . . . . . . . . . . . . . . . . . . . . . . . . . . . Ally Attacks 90 | . . . . . . . . 11 . . . . . . 2 . 10 1 . . . 29 8 29 . . . Total Damage 4396 | . . . . . . . . 292 . . . . . . 69 . 579 46 . . . 1336 897 1177 . . . Kills 30 | . . . . . . . . 2 . . . . . . . . 7 . . . . 11 4 6 . . . Allies Corrupted 1 | . . . . . . . . . . . . . . . . . . . . . . 1 . . . . . Allies Melted 1 | . . . . . . . . . . . . . . . . . . . . . . . 1 . . . . Intel | -11 -10 -10 -10 -9 -8 -7 -7 -7 -7 -7 -7 -6 -6 -6 -6 -6 -5 -5 -5 -5 -4 -4 -3 -3 -2 -2 -2 ------- Run | Yrd Mat Min Exi Min Mat Fac Was Fac Low Low Dat Pro Fac Gar Fac Gar Fac Gar Fac Gar Fac Gar Res Gar Res Gar Res Active Infowar (turns) 6481 | 18 361 757 179 177 371 1350 76 . 411 353 281 453 265 . . . 533 547 140 209 . . . . . . . Optics 173 | . 173 . . . . . . . . . . . . . . . . . . . . . . . . . . Sensors 2550 | . 18 757 119 . . . . . 411 353 281 453 158 . . . . . . . . . . . . . . Terrain 723 | 3 . . . . . 40 76 . . . . . 157 . . . 423 24 . . . . . . . . . Seismic 591 | 15 339 . 60 177 . . . . . . . . . . . . . . . . . . . . . . . Machine Analysis 248 | . . . . . . 248 . . . . . . . . . . . . . . . . . . . . . Jamming 1372 | . . . . . . . . . . . . . . . . . 476 547 140 209 . . . . . . . ECM 1433 | . . . . . 371 1062 . . . . . . . . . . . . . . . . . . . . . Robot Analysis Total 154 | . . . . . . . . . . . 154 . . . . . . . . . . . . . . . . Derelict Logs Recovered 5 | . . 1 . 2 . . . . . . . 2 . . . . . . . . . . . . . . . Drone Launches . | . . . . . . . . . . . . . . . . . . . . . . . . . . . . Drone Recoveries . | . . . . . . . . . . . . . . . . . . . . . . . . . . . . Exploration | -11 -10 -10 -10 -9 -8 -7 -7 -7 -7 -7 -7 -6 -6 -6 -6 -6 -5 -5 -5 -5 -4 -4 -3 -3 -2 -2 -2 ------------- Run | Yrd Mat Min Exi Min Mat Fac Was Fac Low Low Dat Pro Fac Gar Fac Gar Fac Gar Fac Gar Fac Gar Res Gar Res Gar Res Turns Passed 14604 | 94 373 757 212 177 518 1420 133 967 413 353 281 453 387 542 141 242 555 905 140 1048 135 1404 199 1385 778 179 413 Spaces Moved 10843 | 55 352 1242 358 262 597 1963 115 685 316 252 195 314 264 326 115 141 349 376 62 431 74 636 106 584 285 197 191 Core 161 | 5 . . . . . . 95 11 . . . . . . . 37 2 . . . . . . . 11 . . Treads 2938 | . . . . . . 138 20 . . . . . . . . . 191 376 62 431 74 636 106 584 248 . 72 Legs 1208 | 50 29 . . . . . . 174 . . . . 264 326 115 104 146 . . . . . . . . . . Wheels 1606 | . . . . . . . . 500 316 252 167 314 . . . . . . . . . . . . 10 . 47 Hover 4635 | . 323 1242 358 262 597 1825 . . . . 28 . . . . . . . . . . . . . . . . Flight 295 | . . . . . . . . . . . . . . . . . 10 . . . . . . . 16 197 72 Fastest Speed 31 | 50 56 56 56 56 52 38 50 50 130 130 80 100 120 120 120 50 40 170 166 163 165 152 160 160 40 31 34 Average Speed 101 | 113 61 56 56 56 52 56 77 116 130 130 114 114 121 120 120 103 134 170 169 165 165 161 160 163 169 35 132 Slowest Speed 550 | 120 120 56 56 120 56 160 550 130 130 130 130 115 190 120 120 200 180 170 170 166 166 305 160 165 229 40 240 Overloaded Moves 28 | . . . . . . 28 . . . . . . . . . . . . . . . . . . . . . Propulsion Burnouts . | . . . . . . . . . . . . . . . . . . . . . . . . . . . . Robots Hopped 3 | . . . . . . . . . . . . . . . . . . . . . . . . . 2 1 . Potential Cave-ins 2 | . . . . . . . 2 . . . . . . . . . . . . . . . . . . . . Cave-ins Triggered 1 | . . . . . . . . . . . . . . . . . . . . 1 . . . . . . . Exploration Rate (%) 39 | 4 50 99 63 72 57 43 79 16 52 43 78 53 9 37 7 32 12 42 2 53 3 73 3 67 11 31 6 Regions Visited 27 Branch Regions 7 Pre-discovered Areas 32 | . . 1 1 . . . . . . . 30 . . . . . . . . . . . . . . . . Known Exits Taken 15 | . 1 1 . . 1 . . 1 1 1 1 1 1 . 1 . 1 . 1 . 1 . 1 . 1 . . Unknown Exits Taken 3 | 1 . . 1 1 . . . . . . . . . . . . . . . . . . . . . . . Scrap Searched 5 | . . 1 . 2 . . . . . 2 . . . . . . . . . . . . . . . . . Spaces Dug 56 | . . 1 . . 4 7 . . . . . . 4 6 . . 4 . . . 6 2 . 12 5 3 2 Terrain Destroyed 525 | . . 1 . 15 4 7 52 . . . 1 2 5 34 . 5 8 10 27 92 6 95 4 86 32 9 30 Melee 12 | . . 1 . . 4 7 . . . . . . . . . . . . . . . . . . . . . Projectile 186 | . . . . . . . 2 . . . . . 5 27 . 5 8 10 2 30 6 14 . 30 32 9 6 AOE 327 | . . . . 15 . . 50 . . . 1 2 . 7 . . . . 25 62 . 81 4 56 . . 24 Terrain Rammed . | . . . . . . . . . . . . . . . . . . . . . . . . . . . . Walls Destroyed . | . . . . . . . . . . . . . . . . . . . . . . . . . . . . Machines Disabled . | . . . . . . . . . . . . . . . . . . . . . . . . . . . . Actions | -11 -10 -10 -10 -9 -8 -7 -7 -7 -7 -7 -7 -6 -6 -6 -6 -6 -5 -5 -5 -5 -4 -4 -3 -3 -2 -2 -2 --------- Run | Yrd Mat Min Exi Min Mat Fac Was Fac Low Low Dat Pro Fac Gar Fac Gar Fac Gar Fac Gar Fac Gar Res Gar Res Gar Res Total 13246 | 73 441 1291 370 278 762 2181 139 798 319 266 242 363 314 398 118 203 408 546 81 645 80 906 128 862 484 276 274 Wait 724 | . 26 37 . 3 91 68 5 29 . 2 1 2 9 24 . 14 5 91 6 59 . 50 13 80 70 29 10 Move 10818 | 54 351 1241 357 261 596 1963 114 684 315 251 194 313 264 325 115 140 348 375 62 430 74 635 106 583 282 194 191 Hop 2 | . . . . . . . . . . . . . . . . . . . . . . . . . 1 1 . Pick Up 121 | 1 6 1 1 . 7 7 1 5 . 1 12 . 8 1 1 2 6 10 . 15 1 15 . 4 11 1 4 Fast Attach 197 | 9 6 1 4 3 14 29 2 18 . 1 8 1 7 2 . 3 14 3 2 11 . 13 3 7 11 6 19 Attach 82 | 1 . . 1 2 1 2 2 5 2 . 3 1 7 . . 3 9 1 . 7 2 9 . 4 9 6 5 Detach 74 | 3 4 . 2 1 3 6 3 8 1 1 2 . 3 . . 1 6 . 2 2 . 9 1 5 3 6 2 Swap 100 | . 2 1 . . 5 6 1 6 . 2 1 4 4 . . 4 1 2 . 13 . 19 2 10 15 1 1 Drop 158 | . 9 3 5 1 18 22 4 6 1 1 11 . 2 1 1 4 3 3 1 22 . 12 . 6 15 4 3 Fire 658 | 5 34 . . 3 1 3 7 35 . 7 9 41 9 40 . 19 16 61 8 73 3 67 3 87 66 22 39 Melee 103 | . 3 7 . 4 26 60 . 2 . . 1 . . . . . . . . . . . . . . . . Ram 5 | . . . . . . 2 . . . . . 1 1 . . . . . . . . . . . 1 . . Kick 1 | . . . . . . . . . . . . . . . 1 . . . . . . . . . . . . Crush 7 | . . . . . . . . . . . . . . . . . . . . 7 . . . . . . . Escape Stasis 34 | . . . . . . 13 . . . . . . . 2 . 13 . . . . . . . . . 6 . Rewire 156 | . . . . . . . . . . . . . . 3 . . . . . . . 77 . 76 . . . Trap 6 | . . . . . . . . . . . . . . . . . . . . 6 . . . . . . . Miscellaneous . | . . . . . . . . . . . . . . . . . . . . . . . . . . . . Route ------- -11/Scrapyard -10/Materials -10/Mines (discovered 3 exits: *Mat x2 / *Exi) -10/Exiles -9/Mines -8/Materials (discovered 3 exits: *Fac x3) -7/Factory -7/Waste -7/Factory (discovered 3 exits: Sto / *Low x2) -7/Lower Caves -7/Lower Caves -7/Data Miner -6/Proximity Caves -6/Factory (discovered 2 exits: Fac / Gar) -6/Garrison -6/Factory -6/Garrison -5/Factory (discovered 2 exits: [*Upp] / Gar) -5/Garrison -5/Factory -5/Garrison -4/Factory -4/Garrison (discovered 2 exits: *Res x2) -3/Research -3/Garrison (discovered 3 exits: *Res x3) -2/Research -2/Garrison -2/Research (discovered 1 exit: Gar) History --------- Turn | Location | Event 3 | -11/Scrapyard | Discovered new exit (range 16) 95 | -11/Scrapyard | Entered Materials 386 | -10/Materials | Discovered new exit (range 16) 468 | -10/Materials | Identified exit to Mines 468 | -10/Materials | Entered Mines 600 | -10/Mines | Received a Rocket Launcher from a helpful Derelict 650 | -10/Mines | Assembled infested the area 655 | -10/Mines | Assisted by a Guerilla fighting off Assembled 662 | -10/Mines | Build established: Mutant 718 | -10/Mines | A weapon hastily lodged in a ceiling crevice suddenly fell to the ground 747 | -10/Mines | Discovered new exit (range 7) 750 | -10/Mines | Found a hidden stash of uninstalled traps 756 | -10/Mines | Identified exit to Materials 841 | -10/Mines | Discovered exit to Materials (range 4) 844 | -10/Mines | Received a Mining Laser from a helpful Derelict 875 | -10/Mines | Learned location of Zion (-6) 1222 | -10/Mines | Deemed a non-threat by the Exiles lab entrance 1222 | -10/Mines | Discovered new exit (range 5) 1224 | -10/Mines | Identified exit to Exiles 1225 | -10/Mines | Entered Exiles 1240 | -10/Exiles | Met 8R-AWN 1248 | -10/Exiles | Met EX-HEX 1264 | -10/Exiles | Met EX-BIN 1273 | -10/Exiles | Aligned with FarCom system 1274 | -10/Exiles | Given EX-Vault access code 1288 | -10/Exiles | Opened EX-Vault 1313 | -10/Exiles | Warned to stay clear of 0b10 Research branches 1337 | -10/Exiles | Found YOLO Cannon 1406 | -10/Exiles | Met EX-DEC 1430 | -10/Exiles | Discovered new exit (range 14) 1437 | -10/Exiles | Left Exiles lab with YOLO Cannon 1437 | -10/Exiles | Entered Mines 1485 | -9/Mines | Lost 3 parts (1p1n1w) 1568 | -9/Mines | Learned location of 1 exit from Materials 1608 | -9/Mines | Discovered new exit (range 11) 1614 | -9/Mines | Entered Materials 1614 | -8/Materials | Evolved 4 slots: Propulsion x1, Utility x3 1615 | -8/Materials | Identified exit to Factory 1927 | -8/Materials | Discovered exit to Factory (range 11) 2130 | -8/Materials | Discovered exit to Factory (range 4) 2132 | -8/Materials | Entered Factory 2132 | -7/Factory | Evolved 2 slots: Utility x2 2133 | -7/Factory | Identified exit to Storage 2670 | -7/Factory | Build established: Hacker-Mutant 2782 | -7/Factory | Repaired Gravmag System 2849 | -7/Factory | Central database locked down 2852 | -7/Factory | Allied Derelicts emerged from ambush trap array 3050 | -7/Factory | Fabricated Imp. Force Field? 3266 | -7/Factory | Lost 3 parts (2n1u) 3382 | -7/Factory | Cargo convoy interrupted 3552 | -7/Factory | Sucked down chute 3552 | -7/Factory | Entered Waste 3567 | -7/Waste | EMP discharged 3567 | -7/Waste | System corruption reached 10% 3585 | -7/Waste | Spotted C-40 Crusher 3585 | -7/Waste | Spotted C-40 Crusher 3589 | -7/Waste | Spotted C-40 Crusher 3592 | -7/Waste | Destroyed C-40 Crusher 3604 | -7/Waste | Crushed by Compactor (1 part destroyed, 1 dropped) 3604 | -7/Waste | Destroyed C-40 Crusher 3613 | -7/Waste | Crushed by Compactor (1 part destroyed, 1 dropped) 3616 | -7/Waste | Crushed by Compactor (1 part destroyed) 3622 | -7/Waste | Core integrity fell below 50% 3624 | -7/Waste | Spotted C-40 Crusher 3624 | -7/Waste | Spotted C-40 Crusher 3627 | -7/Waste | Crushed by Compactor (1 part destroyed, 1 dropped) 3628 | -7/Waste | Released all parts (5) 3634 | -7/Waste | Found Damper Plating 3636 | -7/Waste | Spotted C-40 Crusher 3658 | -7/Waste | Lost 4 parts (1p2n1u) 3667 | -7/Waste | EMP discharged 3670 | -7/Waste | Discovered new exit (range 11) 3685 | -7/Waste | Entered Factory 3926 | -7/Factory | Build established: Mutant 4031 | -7/Factory | Fabricated L-41 Fighter? 4063 | -7/Factory | Discovered new exit (range 12) 4400 | -7/Factory | Lost 3 allies 4517 | -7/Factory | Identified exit to Lower Caves 4551 | -7/Factory | Garrison activated, responded to threat 4652 | -7/Factory | Entered Lower Caves 4919 | -7/Lower Caves | Encountered a Warlord checkpoint 4931 | -7/Lower Caves | Discovered new exit (range 12) 4947 | -7/Lower Caves | Identified exit to Lower Caves 5065 | -7/Lower Caves | Entered another Lower Caves area 5066 | -7/Lower Caves | Encountered a Warlord checkpoint 5372 | -7/Lower Caves | Discovered new exit (range 15) 5402 | -7/Lower Caves | Identified exit to Data Miner 5418 | -7/Lower Caves | Entered Data Miner 5421 | -7/Data Miner | Discovered new exit (range 6) 5445 | -7/Data Miner | Met Data Miner 5469 | -7/Data Miner | Learned location of Section 7 (-3) 5469 | -7/Data Miner | Acquired the access code to Warlord's prototype stash 5504 | -7/Data Miner | Received God Mode back door access code from Data Miner 5514 | -7/Data Miner | Destroyed Data Miner 5516 | -7/Data Miner | Interfaced with the Data Conduit 5519 | -7/Data Miner | Found Prototype Hackware 5522 | -7/Data Miner | Found Prototype Hackware 5524 | -7/Data Miner | Found Prototype Hackware 5567 | -7/Data Miner | Identified Ghost Barrier 5570 | -7/Data Miner | Identified Quantum Router 5614 | -7/Data Miner | Found Corrupted Exp. Thermal Shield 5698 | -7/Data Miner | Identified exit to Proximity Caves 5699 | -7/Data Miner | Entered Proximity Caves 5777 | -6/Proximity Caves | Learned Factory emergency access door positions 5789 | -6/Proximity Caves | Learned Factory emergency access door positions 5807 | -6/Proximity Caves | Build established: Hacker-Mutant 5834 | -6/Proximity Caves | Core integrity fell below 20% 6092 | -6/Proximity Caves | Attracted the attention of an 0b10 outpost 6137 | -6/Proximity Caves | Discovered new exit (range 15) 6151 | -6/Proximity Caves | Identified exit to Factory 6152 | -6/Proximity Caves | Entered Factory 6152 | -6/Factory | Evolved 2 slots: Utility x2 6154 | -6/Factory | Loaded intel: 284 machine locations 6154 | -6/Factory | System corruption reached 10% 6163 | -6/Factory | Identified Deep Network Scanner 6177 | -6/Factory | Lost 6 parts (1p3u2w) 6305 | -6/Factory | Discovered new exit (range 20) 6539 | -6/Factory | Identified exit to Garrison 6539 | -6/Factory | Entered Garrison 6540 | -6/Garrison | Loaded intel: 32 machine locations 6707 | -6/Garrison | Triggered checkpoint 6796 | -6/Garrison | Installed Relay Interface Framework 6838 | -6/Garrison | Discovered new exit (range 15) 7011 | -6/Garrison | Triggered checkpoint 7081 | -6/Garrison | Entered Factory 7081 | -6/Factory | Accompanied by 1 ally 7083 | -6/Factory | Loaded intel: 213 machine locations 7191 | -6/Factory | Build established: Scavenger-Mutant 7222 | -6/Factory | Identified exit to Garrison 7222 | -6/Factory | Entered Garrison 7223 | -6/Garrison | Loaded intel: 31 machine locations 7401 | -6/Garrison | System corruption reached 30% 7409 | -6/Garrison | Spotted B-75 Beast 7416 | -6/Garrison | Triggered checkpoint 7433 | -6/Garrison | Expanded RIF knowledge: Command Fork 7443 | -6/Garrison | Core integrity fell below 50% 7459 | -6/Garrison | Lost 11 parts (1p3n4u3w) 7460 | -6/Garrison | Discovered new exit (range 8) 7464 | -6/Garrison | Entered Factory 7464 | -5/Factory | Evolved 2 slots: Utility x2 7465 | -5/Factory | Loaded intel: 259 machine locations 7564 | -5/Factory | Build established: Hacker-Mutant 7810 | -5/Factory | Identified exit to Garrison 7890 | -5/Factory | Discovered new exit (range 14) 8006 | -5/Factory | Build established: Hacker-Skirmisher 8019 | -5/Factory | Entered Garrison 8019 | -5/Garrison | Accompanied by 1 ally 8020 | -5/Garrison | Loaded intel: 36 machine locations 8196 | -5/Garrison | Triggered checkpoint 8226 | -5/Garrison | Spotted B-75 Beast 8325 | -5/Garrison | System corruption reached 10% 8358 | -5/Garrison | Build established: Hacker-Mutant 8573 | -5/Garrison | Destroyed B-75 Beast 8577 | -5/Garrison | Triggered checkpoint 8668 | -5/Garrison | Discovered new exit (range 9) 8868 | -5/Garrison | Expanded RIF knowledge: Alert ID Control 8924 | -5/Garrison | Entered Factory 8925 | -5/Factory | Loaded intel: 267 machine locations 8967 | -5/Factory | Garrison activated, responded to threat 9064 | -5/Factory | Identified exit to Garrison 9064 | -5/Factory | Entered Garrison 9065 | -5/Garrison | Loaded intel: 27 machine locations 9090 | -5/Garrison | Triggered checkpoint 9390 | -5/Garrison | Found Fusion Bomb Launcher 9411 | -5/Garrison | Build established: Scavenger-Mutant 9505 | -5/Garrison | Expanded RIF knowledge: Signal Jamming 9607 | -5/Garrison | Spotted B-75 Beast 9646 | -5/Garrison | Spotted B-75 Beast 9706 | -5/Garrison | Destroyed B-75 Beast 9733 | -5/Garrison | Lost 3 parts (1p1n1u) 9862 | -5/Garrison | Destroyed B-75 Beast 9878 | -5/Garrison | Triggered checkpoint 9932 | -5/Garrison | Triggered checkpoint 9993 | -5/Garrison | Destroyed 9 combat bots 10012 | -5/Garrison | Core integrity fell below 50% 10050 | -5/Garrison | Crushed by falling debris 10081 | -5/Garrison | Lost 3 parts (2u1w) 10094 | -5/Garrison | Discovered new exit (range 10) 10112 | -5/Garrison | Entered Factory 10112 | -4/Factory | Evolved 2 slots: Power x1, Propulsion x1 10113 | -4/Factory | Loaded intel: 297 machine locations 10247 | -4/Factory | Identified exit to Garrison 10247 | -4/Factory | Entered Garrison 10248 | -4/Garrison | Loaded intel: 38 machine locations 10294 | -4/Garrison | Expanded RIF knowledge: Threat Obfuscation 10315 | -4/Garrison | Triggered checkpoint 10417 | -4/Garrison | Rewired Executioner 10464 | -4/Garrison | Rewired Executioner 10516 | -4/Garrison | Triggered checkpoint 10516 | -4/Garrison | Triggered checkpoint 10623 | -4/Garrison | Triggered checkpoint 10668 | -4/Garrison | Discovered new exit (range 10) 10727 | -4/Garrison | Expanded RIF knowledge: Autooverride 10791 | -4/Garrison | Triggered checkpoint 10828 | -4/Garrison | Garrison Relay disabled 10922 | -4/Garrison | Triggered checkpoint 10989 | -4/Garrison | Discovered new exit (range 9) 11026 | -4/Garrison | Spotted B-90 Cyclops 11039 | -4/Garrison | Spotted B-86 Titan 11059 | -4/Garrison | Destroyed B-86 Titan 11115 | -4/Garrison | Destroyed B-90 Cyclops 11146 | -4/Garrison | Lost 12 parts (1p4n6u1w) 11297 | -4/Garrison | Rewired B-75 Beast 11371 | -4/Garrison | Triggered checkpoint 11412 | -4/Garrison | Garrison Relay disabled 11651 | -4/Garrison | Entered Research 11651 | -3/Research | Accompanied by 4 allies 11651 | -3/Research | Evolved 2 slots: Utility x2 11652 | -3/Research | Loaded intel: 125 machine locations 11664 | -3/Research | Central database locked down 11760 | -3/Research | Lost 4 allies 11850 | -3/Research | Identified exit to Garrison 11850 | -3/Research | Entered Garrison 11851 | -3/Garrison | Loaded intel: 29 machine locations 12158 | -3/Garrison | Spotted B-86 Titan 12158 | -3/Garrison | Triggered checkpoint 12207 | -3/Garrison | Destroyed B-86 Titan 12233 | -3/Garrison | Found Hvy. Reflective Plating 12244 | -3/Garrison | Triggered checkpoint 12298 | -3/Garrison | Triggered checkpoint 12323 | -3/Garrison | Destroyed 10 combat bots 12324 | -3/Garrison | Lost 3 parts (1p1n1u) 12452 | -3/Garrison | Expanded RIF knowledge: Zone Cloak 12636 | -3/Garrison | Discovered new exit (range 12) 12802 | -3/Garrison | Triggered checkpoint 12880 | -3/Garrison | Triggered checkpoint 13001 | -3/Garrison | Spotted B-86 Titan 13036 | -3/Garrison | Destroyed B-86 Titan 13057 | -3/Garrison | Lost 4 allies 13070 | -3/Garrison | Discovered new exit (range 16) 13207 | -3/Garrison | Discovered new exit (range 9) 13235 | -3/Garrison | Entered Research 13235 | -2/Research | Evolved 2 slots: Power x1, Utility x1 13236 | -2/Research | Loaded intel: 117 machine locations 13485 | -2/Research | First assault squad dispatched 13647 | -2/Research | Lost 3 parts (3u) 13990 | -2/Research | System corruption reached 10% 14013 | -2/Research | Identified exit to Garrison 14013 | -2/Research | Entered Garrison 14014 | -2/Garrison | Loaded intel: 37 machine locations 14038 | -2/Garrison | Lost 20 parts (2p5n10u3w) 14168 | -2/Garrison | Spotted B-90 Cyclops 14181 | -2/Garrison | Discovered new exit (range 14) 14188 | -2/Garrison | Expanded RIF knowledge: Command Fork 14192 | -2/Garrison | Entered Research 14193 | -2/Research | Loaded intel: 107 machine locations 14203 | -2/Research | Identified exit to Garrison 14237 | -2/Research | Core integrity fell below 50% 14243 | -2/Research | Build established: Mutant 14368 | -2/Research | Spotted B-90 Cyclops 14385 | -2/Research | Destroyed B-90 Cyclops 14534 | -2/Research | Core integrity fell below 20% 14560 | -2/Research | Build established: Scavenger-Mutant 14605 | -2/Research | Destroyed by H-88 Terminator with KE Penetrator Last Messages --------------- 14568_ Destroyed Imp. Antigrav System. 14568_ U-05 Engineer builds a Wall. 14570_ Mic. Antimatter Reactor broken. 14570_ Overheating: Short circuit. 14570_ System corrupted: Energy discharge (-118). 14570_ Destroyed Imp. Antigrav System. 14570_ P-80 Master critical meltdown. 14570_ Adv. Target Analyzer melted. 14570_ Adv. Remote Datajack melted. 14570_ Sml. Battery melted. 14570_ Imp. Antigrav System melted. 14574_ K-01 Serf collects debris. 14588_ Lgt. Quantum Reactor destroyed. 14588_ Critical hit (Burn: +37). 14588_ Particle Reactor destroyed. 14589_ K-01 Serf collects debris. 14592_ Broken Mic. Antimatter Reactor destroyed. 14595_ System corrupted: Energy discharge (-2). 14603_ Com. Wheel destroyed. 14605_ Slug penetrates Wall. Map ----- +----------------------------------------------------+ | ?????????????????????????????????? ???????????? | | ??????????"""???????????????????####+#####???????? | | ??????????"""???????T"??????????# #??????? | | ??????????"""????????"??????????# %! #?###### | | ????????????????????????????????# """ # | | ????????????????????????????????# """"# | | ????????????????????????????????# """# | | ????????????????????????????????# """# | | ????????????????????????????????# # | | ????????????????????????????????# # | | ????????????????????????????########+###### | | ????????????????????????????# %%% | | ????????????????????????????# h [ | | ???????????????############## % | | ???????????????# ! # h ! | | ???????????????# # "" ! ####### | | ???????????????#" """ # "T %#?????? | | ???????????????#" ! """ # h """ = #?????? | | ???????????????#" """ #g #?????? | | ???????????????#T ggh #?????? | | ???????????????#" g# [ #???### | | ???????????????#" # # #???# | | ???????????????#" # ### # #???# | | ???????????????# # ### ####???# | | ???????????????# # ### ######## | | ???????????????# @ # #?# + | | ???????????????######### #### #?# # | | ???????????????????# #### # #?# + | | ???????????????????#### # ### #?# # | | ??????????????????????#####?# #?########+##+# | | ????????????##########??????# #???# # | | ????????????# ######## #???# # | | ????????????# ] # #???# ]] # | | ????????????# # ###?# ] ] ### | | ????????????? """" # ""#?# ]] #?? | | ????????????? """" + F"#?# #?? | | ????????????? """" # "#?# #?? | | ?????????????? """" ]# """ ""#?# #?? | | ?????????????? # >G" ###?###########?? | | ????????????? # """ #???????????????? | | ???????????########### #???????????????? | | ???????????# # #???????????????? | | ???????????# + #???????????????? | | ???????????# """" * # ########???????????????? | | ??????????????"""" # ###########????????????? | | ??????????????"""" ?# # #????????????? | | ??????????????"""" ?# # #????????????? | | ?????????????? ??# # #????????????? | | ????????????? ??# # #????????????? | | ?????????????#####???# ]+ #????????????? | +----------------------------------------------------+ Best States ------------- Heat Dissipation 130 Coolant Potential 80 Energy Generation 83 Energy Capacity 850 Matter Stores 300 Matter Capacity 300 Sight Range 18 Robot Scan Range 15 Terrain Scan Range 20 Terrain Scan Density 210 ECM Strength 1 Jamming Range 12 Power Amplification 30 Additional Mass Support 16 Corruption Containment 12 Armor Coverage 1600 Resistance: KI 25 Resistance: TH 30 Resistance: EM 90 Propulsion Shielding 66 Utility Shielding 66 Weapon Shielding 66 Point Defense Rating 160 Weapon Cycling 25 Phase Shifting 15 Evasion (%) 63 Targeting Accuracy 8 Target Analysis 9 Core Analysis 6 Armor Integrity Analysis 40 Recoil Reduction 4 Particle Charging 20 Kinecelleration 30 Salvage Targeting 3 Offensive Hacking 37 Defensive Hacking 45 Relay Coupler Types 1 Relay Coupler Value 27 Item Schematics ----------------- Combat Drone Bay | -7/Data Miner | Free Lgt. Regenerative Plating | -7/Data Miner | Free Cld. Aerolev Unit | -7/Data Miner | Free Thermal Defense Suite | -7/Data Miner | Free Imp. Lightning Gun | -7/Data Miner | Free Gyrokinetic Inverter | -7/Data Miner | Free Adv. Salvage Targeting Computer | -7/Data Miner | Free KE Penetrator | -7/Data Miner | Free Adv. Transmission Jammer | -7/Data Miner | Free Hpw. Shock Rifle | -7/Data Miner | Free Robot Schematics ------------------ G-47 Trooper | -7/Data Miner | Free S-27 Virus | -7/Data Miner | Free A-15 Conveyor | -7/Data Miner | Free Fabricated ------------ Imp. Force Field | x2 | -7/Factory | Preloaded L-41 Fighter | x3 | -7/Factory | Preloaded Repaired ---------- Gravmag System | 57% | -7/Factory Studied --------- Rocket Launcher | -8/Materials | Hacked Ion Engine | -8/Materials | Hacked Gravmag System | -7/Factory | Hacked Imp. Deuterium Engine | -7/Factory | Hacked Arm. Heavy Treads | -3/Research | Hacked Alien Tech Used ----------------- None Achievements -------------- Construction Begets Destruction Hackerman I Laugh At Your Crits Immobile And Lovin' It Item+ Jackpot Join The Dark Side Let Me Out Of Here More Power To You Overwhelming Sprinter That Tickles Well Done You Will Be Upgraded Challenges ------------ None Game ------ Seed TargetingMeleeSubcomponent Manual? 0 Play Time 03:16:43 Cumulative 96.9 hours Start 2025.11.05 @ 11:52:23 End 2025.11.06 @ 15:10:07 Sessions 11 Manual Loads 0 Difficulty Rogue Special Mode None Game No. 86 Rogue 86 Adventurer 0 Explorer 0 Win Type - Total 1 Types 1/0/0/0/0/0/0/0/0/0 Lore% 53 Gallery% 58 Achievement% 40 Wizard Run 0 Options --------- Layout 0 ASCII 0 Keyboard 1 Movement Vi Keybinds 0 Fullscreen 1 Font 18/SmallcapsGlow Map View 76x50 Zoom Use 0% Tactical HUD 1 Map Filters NONE Filters NONE Steam 1 RUN: 6781e49a-3882-4c08-8803-528b8bf9ac87